[Event "Early-Titled-Tuesday-Blitz-May-14-2024"]
[Site "Chess.com"]
[Date "2024.05.14"]
[Round "7"]
[White "Quattroporte300"]
[Black "ChainedDowntohell"]
[Result "1-0"]
[WhiteElo "2422"]
[BlackElo "2576"]
[TimeControl "180+1"]
[EndTime "9:20:07 PDT"]
[Termination "Quattroporte300 won on time"]

1. e4 {[%clk 0:02:57.8]} 1... g6 {[%clk 0:02:42.7]} 2. d4 {[%clk 0:02:57.3]}
2... d6 {[%clk 0:02:41.5]} 3. Nf3 {[%clk 0:02:56.6]} 3... c6 {[%clk 0:02:41.6]}
4. Bc4 {[%clk 0:02:56.3]} 4... b5 {[%clk 0:02:39.9]} 5. Bb3 {[%clk 0:02:53.7]}
5... Nf6 {[%clk 0:02:34.4]} 6. Qe2 {[%clk 0:02:52.2]} 6... a6 {[%clk 0:02:26.6]}
7. a4 {[%clk 0:02:50.6]} 7... bxa4 {[%clk 0:02:22.6]} 8. Rxa4 {[%clk 0:02:48]}
8... Bg7 {[%clk 0:02:20.4]} 9. O-O {[%clk 0:02:46.9]} 9... O-O {[%clk
0:02:20.2]} 10. h3 {[%clk 0:02:46]} 10... a5 {[%clk 0:02:19.1]} 11. Re1 {[%clk
0:02:44.8]} 11... Ba6 {[%clk 0:02:00.5]} 12. Qe3 {[%clk 0:02:42]} 12... Nbd7
{[%clk 0:01:54.6]} 13. Nc3 {[%clk 0:02:41]} 13... Nb6 {[%clk 0:01:53.1]} 14. Ra1
{[%clk 0:02:39.8]} 14... Nfd7 {[%clk 0:01:43.5]} 15. Bd2 {[%clk 0:02:29.7]}
15... c5 {[%clk 0:01:40.4]} 16. dxc5 {[%clk 0:02:00.8]} 16... Nxc5 {[%clk
0:01:39.7]} 17. Ba2 {[%clk 0:01:55.4]} 17... a4 {[%clk 0:01:33.2]} 18. Rad1
{[%clk 0:01:54.3]} 18... Qb8 {[%clk 0:01:30.1]} 19. Bc1 {[%clk 0:01:50.8]} 19...
Qb7 {[%clk 0:01:22.2]} 20. e5 {[%clk 0:01:49]} 20... Nc4 {[%clk 0:01:08.7]} 21.
Bxc4 {[%clk 0:01:45.3]} 21... Bxc4 {[%clk 0:01:09.6]} 22. exd6 {[%clk
0:01:40.8]} 22... exd6 {[%clk 0:01:10.5]} 23. Rxd6 {[%clk 0:01:40]} 23... Ne6
{[%clk 0:01:01.2]} 24. Ne5 {[%clk 0:01:33]} 24... Qc8 {[%clk 0:00:42.2]} 25. Rc6
{[%clk 0:01:26.2]} 25... Qb7 {[%clk 0:00:10.6]} 26. Rxc4 {[%clk 0:01:26.6]}
26... a3 {[%clk 0:00:09.7]} 27. bxa3 {[%clk 0:01:24.7]} 27... Rad8 {[%clk
0:00:09.2]} 28. Rb4 {[%clk 0:01:06.9]} 28... Qc7 {[%clk 0:00:05.1]} 29. Bb2
{[%clk 0:00:58.1]} 29... Rde8 {[%clk 0:00:02.6]} 30. Nb5 {[%clk 0:00:57.6]}
30... Qd8 {[%clk 0:00:02.3]} 31. Nc6 {[%clk 0:00:54.6]} 31... Qd7 {[%clk
0:00:02.1]} 32. Bxg7 {[%clk 0:00:54.7]} 32... Nxg7 {[%clk 0:00:01.8]} 33. Ne5
{[%clk 0:00:51.3]} 33... Qf5 {[%clk 0:00:02]} 34. Re4 {[%clk 0:00:43.8]} 34...
f6 {[%clk 0:00:01.5]} 35. Nf3 {[%clk 0:00:41.7]} 35... Rxe4 {[%clk 0:00:01.2]}
36. Qxe4 {[%clk 0:00:42]} 36... Qxb5 {[%clk 0:00:01.8]} 37. Qb4 {[%clk
0:00:40.1]} 37... Qf5 {[%clk 0:00:01.3]} 38. Qb3+ {[%clk 0:00:37.2]} 38... Kh8
{[%clk 0:00:00.8]} 39. a4 {[%clk 0:00:38]} 39... Qc8 {[%clk 0:00:01.2]} 40. Ra1
{[%clk 0:00:37.5]} 40... Nf5 {[%clk 0:00:01.6]} 41. a5 {[%clk 0:00:37.4]} 41...
Qa8 {[%clk 0:00:01.7]} 42. a6 {[%clk 0:00:37.6]} 42... Kg7 {[%clk 0:00:01.4]}
43. a7 {[%clk 0:00:38]} 43... Re8 {[%clk 0:00:01.2]} 44. Qb6 {[%clk 0:00:35]}
44... Re7 {[%clk 0:00:01.3]} 45. c4 {[%clk 0:00:34.1]} 45... Rb7 {[%clk
0:00:01.1]} 46. Qxb7+ {[%clk 0:00:31]} 46... Qxb7 {[%clk 0:00:01.1]} 47. a8=Q
{[%clk 0:00:31.9]} 47... Qb2 {[%clk 0:00:01.4]} 48. Qa2 {[%clk 0:00:29.2]} 48...
Qc3 {[%clk 0:00:00.9]} 49. Rd1 {[%clk 0:00:28.8]} 1-0

[Event "Early-Titled-Tuesday-Blitz-May-14-2024"]
[Site "Chess.com"]
[Date "2024.05.14"]
[Round "7"]
[White "alvarorodriguezavila"]
[Black "abelmat"]
[Result "1-0"]
[WhiteElo "2308"]
[BlackElo "2018"]
[TimeControl "180+1"]
[EndTime "9:20:07 PDT"]
[Termination "alvarorodriguezavila won on time"]

1. e4 {[%clk 0:03:00.9]} 1... e6 {[%clk 0:02:59.9]} 2. b3 {[%clk 0:02:39]} 2...
d5 {[%clk 0:03:00.8]} 3. Bb2 {[%clk 0:02:39.4]} 3... dxe4 {[%clk 0:02:59.2]} 4.
Nc3 {[%clk 0:02:40]} 4... Nf6 {[%clk 0:02:59.1]} 5. Qe2 {[%clk 0:02:40.6]} 5...
Nc6 {[%clk 0:02:57.8]} 6. O-O-O {[%clk 0:02:40.7]} 6... Be7 {[%clk 0:02:54.9]}
7. Nxe4 {[%clk 0:02:40]} 7... O-O {[%clk 0:02:54.7]} 8. Nf3 {[%clk 0:02:38.6]}
8... Nxe4 {[%clk 0:02:52.2]} 9. Qxe4 {[%clk 0:02:36.8]} 9... Bf6 {[%clk
0:02:51.7]} 10. d4 {[%clk 0:02:33.5]} 10... Bd7 {[%clk 0:02:37]} 11. h4 {[%clk
0:02:26]} 11... Nb4 {[%clk 0:02:24.3]} 12. Kb1 {[%clk 0:02:26]} 12... Bc6 {[%clk
0:02:21.7]} 13. Qe1 {[%clk 0:02:26.6]} 13... a5 {[%clk 0:02:18.6]} 14. Ne5
{[%clk 0:02:22.1]} 14... Qe7 {[%clk 0:02:10.9]} 15. a3 {[%clk 0:02:07.4]} 15...
Nd5 {[%clk 0:02:07.1]} 16. Bd3 {[%clk 0:02:08]} 16... Nf4 {[%clk 0:02:02.4]} 17.
Nxc6 {[%clk 0:02:07.4]} 17... bxc6 {[%clk 0:01:58.1]} 18. Qe4 {[%clk 0:02:08]}
18... Nxd3 {[%clk 0:01:49.6]} 19. Rxd3 {[%clk 0:02:06.5]} 19... c5 {[%clk
0:01:44.8]} 20. d5 {[%clk 0:01:55.3]} 20... exd5 {[%clk 0:01:31.5]} 21. Qxe7
{[%clk 0:01:51.7]} 21... Bxe7 {[%clk 0:01:30.7]} 22. Rxd5 {[%clk 0:01:52.6]}
22... Rad8 {[%clk 0:01:28.7]} 23. Rhd1 {[%clk 0:01:50.5]} 23... Rxd5 {[%clk
0:01:24.5]} 24. Rxd5 {[%clk 0:01:51.4]} 24... Bxh4 {[%clk 0:01:22.1]} 25. Rxc5
{[%clk 0:01:51.1]} 25... Bxf2 {[%clk 0:01:19]} 26. Rxc7 {[%clk 0:01:34.8]} 26...
h6 {[%clk 0:01:16.5]} 27. c4 {[%clk 0:01:26.5]} 27... Re8 {[%clk 0:01:06.1]} 28.
Rd7 {[%clk 0:01:13.8]} 28... Re1+ {[%clk 0:01:02.7]} 29. Kc2 {[%clk 0:01:14.1]}
29... Re2+ {[%clk 0:01:00.3]} 30. Rd2 {[%clk 0:01:14.6]} 30... Rxd2+ {[%clk
0:00:50.2]} 31. Kxd2 {[%clk 0:01:15.5]} 31... g5 {[%clk 0:00:39.6]} 32. b4
{[%clk 0:01:13.7]} 32... Bb6 {[%clk 0:00:35]} 33. c5 {[%clk 0:01:11.9]} 33...
Ba7 {[%clk 0:00:31.9]} 34. g4 {[%clk 0:01:09.6]} 34... Kh7 {[%clk 0:00:30.3]}
35. Be5 {[%clk 0:01:06.6]} 35... Kg6 {[%clk 0:00:31.2]} 36. Kd3 {[%clk 0:01:01]}
36... f5 {[%clk 0:00:30.1]} 37. Kc4 {[%clk 0:00:37.7]} 37... fxg4 {[%clk
0:00:22.9]} 38. b5 {[%clk 0:00:37.9]} 38... h5 {[%clk 0:00:20.2]} 39. b6 {[%clk
0:00:35.5]} 39... Bxb6 {[%clk 0:00:07.3]} 40. cxb6 {[%clk 0:00:36.4]} 40... h4
{[%clk 0:00:08]} 41. b7 {[%clk 0:00:36.3]} 41... g3 {[%clk 0:00:08.8]} 42. b8=Q
{[%clk 0:00:36.1]} 42... g2 {[%clk 0:00:08.6]} 43. Qb1+ {[%clk 0:00:36.7]} 43...
Kh5 {[%clk 0:00:05.5]} 44. Qg1 {[%clk 0:00:37.6]} 44... h3 {[%clk 0:00:05.5]}
45. Bh2 {[%clk 0:00:37.6]} 45... g4 {[%clk 0:00:03.3]} 46. Kd3 {[%clk
0:00:36.1]} 46... Kh4 {[%clk 0:00:02.8]} 47. Qf2+ {[%clk 0:00:35.6]} 1-0

[Event "Early-Titled-Tuesday-Blitz-May-14-2024"]
[Site "Chess.com"]
[Date "2024.05.14"]
[Round "7"]
[White "chesslh93"]
[Black "MathiasWomacka"]
[Result "0-1"]
[WhiteElo "2332"]
[BlackElo "2522"]
[TimeControl "180+1"]
[EndTime "9:20:08 PDT"]
[Termination "MathiasWomacka won on time"]

1. e4 {[%clk 0:03:00.9]} 1... c5 {[%clk 0:02:59.9]} 2. Nf3 {[%clk 0:03:00.9]}
2... d6 {[%clk 0:03:00.3]} 3. d4 {[%clk 0:03:01.3]} 3... cxd4 {[%clk 0:03:01]}
4. Nxd4 {[%clk 0:03:02.2]} 4... Nf6 {[%clk 0:03:00.8]} 5. Nc3 {[%clk 0:03:02.8]}
5... a6 {[%clk 0:03:01.2]} 6. Be2 {[%clk 0:03:03.2]} 6... e5 {[%clk 0:03:01.1]}
7. Nb3 {[%clk 0:03:03.8]} 7... Be7 {[%clk 0:03:01.6]} 8. O-O {[%clk 0:03:04.1]}
8... O-O {[%clk 0:03:02.1]} 9. Be3 {[%clk 0:03:04.7]} 9... Be6 {[%clk
0:03:01.1]} 10. Qd2 {[%clk 0:03:05.1]} 10... Nbd7 {[%clk 0:03:00.4]} 11. a4
{[%clk 0:03:05.5]} 11... Nb6 {[%clk 0:02:58.5]} 12. a5 {[%clk 0:03:05.6]} 12...
Nc4 {[%clk 0:02:58.6]} 13. Bxc4 {[%clk 0:03:06.1]} 13... Bxc4 {[%clk 0:02:59]}
14. Rfd1 {[%clk 0:03:07]} 14... h6 {[%clk 0:02:57.6]} 15. Nc1 {[%clk 0:03:01.3]}
15... Rc8 {[%clk 0:02:53.9]} 16. Bb6 {[%clk 0:02:54.3]} 16... Qe8 {[%clk
0:02:52.6]} 17. Nd3 {[%clk 0:02:39.7]} 17... Be6 {[%clk 0:02:51.2]} 18. f3
{[%clk 0:02:27.8]} 18... Nd7 {[%clk 0:02:49.1]} 19. Be3 {[%clk 0:02:25.4]} 19...
f5 {[%clk 0:02:48.4]} 20. exf5 {[%clk 0:02:24.4]} 20... Rxf5 {[%clk 0:02:45.6]}
21. Nb4 {[%clk 0:02:20.8]} 21... Qg6 {[%clk 0:02:28.1]} 22. Nbd5 {[%clk
0:02:14.2]} 22... Bf8 {[%clk 0:02:27]} 23. Kh1 {[%clk 0:02:07.2]} 23... Rf7
{[%clk 0:02:25]} 24. Rac1 {[%clk 0:01:41.5]} 24... Bf5 {[%clk 0:02:10.2]} 25.
Bf2 {[%clk 0:01:24.4]} 25... Nf6 {[%clk 0:01:32]} 26. Nxf6+ {[%clk 0:01:15.4]}
26... gxf6 {[%clk 0:01:31.4]} 27. Nd5 {[%clk 0:00:30.2]} 27... Rxc2 {[%clk
0:01:10.6]} 28. Rxc2 {[%clk 0:00:30.2]} 28... Bxc2 {[%clk 0:01:08.7]} 29. Rc1
{[%clk 0:00:30.6]} 29... Bb3 {[%clk 0:01:08.6]} 30. h3 {[%clk 0:00:23.8]} 30...
h5 {[%clk 0:00:59]} 31. Bh4 {[%clk 0:00:20.8]} 31... Kh7 {[%clk 0:00:49.5]} 32.
Rc3 {[%clk 0:00:09.7]} 32... Bh6 {[%clk 0:00:39.9]} 33. Qd3 {[%clk 0:00:05.9]}
33... Qxd3 {[%clk 0:00:37.8]} 34. Rxd3 {[%clk 0:00:06.8]} 34... Bc4 {[%clk
0:00:36.4]} 35. Rd1 {[%clk 0:00:03.3]} 35... Kg6 {[%clk 0:00:36.3]} 36. Kg1
{[%clk 0:00:01.3]} 36... Bf8 {[%clk 0:00:26.6]} 37. Bf2 {[%clk 0:00:01.4]} 37...
Bxd5 {[%clk 0:00:25]} 38. Rxd5 {[%clk 0:00:01.4]} 38... Rc7 {[%clk 0:00:25.6]}
39. Bb6 {[%clk 0:00:01.4]} 39... Rc2 {[%clk 0:00:25.2]} 40. b4 {[%clk
0:00:01.2]} 40... Kf5 {[%clk 0:00:22.9]} 41. b5 {[%clk 0:00:01.1]} 41... Ke6
{[%clk 0:00:22.1]} 42. bxa6 {[%clk 0:00:01.2]} 42... bxa6 {[%clk 0:00:20.7]} 43.
Rd1 {[%clk 0:00:00.8]} 43... d5 {[%clk 0:00:20.9]} 44. Rb1 {[%clk 0:00:00.5]}
44... d4 {[%clk 0:00:20.9]} 45. Kf1 {[%clk 0:00:00.7]} 45... f5 {[%clk
0:00:20.7]} 0-1

[Event "Early-Titled-Tuesday-Blitz-May-14-2024"]
[Site "Chess.com"]
[Date "2024.05.14"]
[Round "7"]
[White "IvanMorovic"]
[Black "Lennis93"]
[Result "1-0"]
[WhiteElo "2596"]
[BlackElo "2791"]
[TimeControl "180+1"]
[EndTime "9:20:10 PDT"]
[Termination "IvanMorovic won on time"]

1. e4 {[%clk 0:03:00.9]} 1... e6 {[%clk 0:02:55.5]} 2. d4 {[%clk 0:02:59.6]}
2... d5 {[%clk 0:02:56.4]} 3. Nc3 {[%clk 0:02:58.2]} 3... Bb4 {[%clk 0:02:55.7]}
4. e5 {[%clk 0:02:57.4]} 4... c5 {[%clk 0:02:56.1]} 5. a3 {[%clk 0:02:57.4]}
5... Bxc3+ {[%clk 0:02:56.1]} 6. bxc3 {[%clk 0:02:57.7]} 6... Qc7 {[%clk
0:02:55.4]} 7. Nf3 {[%clk 0:02:54]} 7... b6 {[%clk 0:02:54.2]} 8. Bb5+ {[%clk
0:02:51.2]} 8... Bd7 {[%clk 0:02:52]} 9. Bd3 {[%clk 0:02:51.8]} 9... c4 {[%clk
0:02:50.3]} 10. Be2 {[%clk 0:02:50.9]} 10... Ba4 {[%clk 0:02:50.9]} 11. O-O
{[%clk 0:02:47.4]} 11... Ne7 {[%clk 0:02:39.8]} 12. g3 {[%clk 0:02:41.5]} 12...
h6 {[%clk 0:02:32.9]} 13. Nh4 {[%clk 0:02:38.7]} 13... Nd7 {[%clk 0:01:53.7]}
14. f4 {[%clk 0:02:29.8]} 14... g6 {[%clk 0:01:53.3]} 15. Be3 {[%clk 0:02:23.7]}
15... O-O-O {[%clk 0:01:50.8]} 16. Rf2 {[%clk 0:02:17.6]} 16... Nf5 {[%clk
0:01:50.4]} 17. Nxf5 {[%clk 0:02:16.6]} 17... exf5 {[%clk 0:01:50.4]} 18. g4
{[%clk 0:02:12.2]} 18... fxg4 {[%clk 0:01:11.5]} 19. Bxg4 {[%clk 0:02:13.1]}
19... f5 {[%clk 0:01:11.4]} 20. exf6 {[%clk 0:01:59.6]} 20... Kb7 {[%clk
0:01:11.1]} 21. Be6 {[%clk 0:00:42.4]} 21... Nxf6 {[%clk 0:01:09.9]} 22. Qf3
{[%clk 0:00:39.2]} 22... Rd6 {[%clk 0:00:30.8]} 23. f5 {[%clk 0:00:38.6]} 23...
g5 {[%clk 0:00:30.8]} 24. h4 {[%clk 0:00:38.8]} 24... Ne4 {[%clk 0:00:19.7]} 25.
Rg2 {[%clk 0:00:36.2]} 25... Bd7 {[%clk 0:00:19]} 26. Bxd5+ {[%clk 0:00:28]}
26... Rxd5 {[%clk 0:00:18.4]} 27. Qxe4 {[%clk 0:00:28.7]} 27... Bc6 {[%clk
0:00:18.8]} 28. Qg4 {[%clk 0:00:23.4]} 28... Qf7 {[%clk 0:00:13.7]} 29. Rf1
{[%clk 0:00:21.7]} 29... Ra5 {[%clk 0:00:12.4]} 30. Rg3 {[%clk 0:00:19.7]} 30...
Qd5 {[%clk 0:00:11.1]} 31. Qh3 {[%clk 0:00:14.7]} 31... Bd7 {[%clk 0:00:10]} 32.
hxg5 {[%clk 0:00:14.4]} 32... Bxf5 {[%clk 0:00:08.5]} 33. Qg2 {[%clk 0:00:12.3]}
33... Be4 {[%clk 0:00:08.8]} 34. Qh2 {[%clk 0:00:12.4]} 34... Ka6 {[%clk
0:00:08.4]} 35. g6 {[%clk 0:00:11.5]} 35... Rxa3 {[%clk 0:00:08.6]} 36. g7
{[%clk 0:00:11.4]} 36... Rg8 {[%clk 0:00:09.1]} 37. Qxh6 {[%clk 0:00:10.5]}
37... Rxc3 {[%clk 0:00:09.2]} 38. Rg5 {[%clk 0:00:10.7]} 38... Qd7 {[%clk
0:00:02.8]} 39. Rf8 {[%clk 0:00:10.2]} 39... Rxg7 {[%clk 0:00:01.2]} 40. Rxg7
{[%clk 0:00:09.4]} 40... Qa4 {[%clk 0:00:01.3]} 41. Rf1 {[%clk 0:00:07.1]} 41...
Rxc2 {[%clk 0:00:01.5]} 42. Qf4 {[%clk 0:00:06.7]} 42... Bd3 {[%clk 0:00:00.8]}
43. Qc7 {[%clk 0:00:05.9]} 1-0

[Event "Early-Titled-Tuesday-Blitz-May-14-2024"]
[Site "Chess.com"]
[Date "2024.05.14"]
[Round "7"]
[White "AnaKuchava"]
[Black "GMthekingindian"]
[Result "1-0"]
[WhiteElo "2202"]
[BlackElo "2288"]
[TimeControl "180+1"]
[EndTime "9:20:12 PDT"]
[Termination "AnaKuchava won by checkmate"]

1. d4 {[%clk 0:03:00.9]} 1... d5 {[%clk 0:02:55.3]} 2. Nf3 {[%clk 0:03:00.5]}
2... Nf6 {[%clk 0:02:55.3]} 3. c4 {[%clk 0:02:59.6]} 3... e6 {[%clk 0:02:54.9]}
4. Nc3 {[%clk 0:02:59.5]} 4... c5 {[%clk 0:02:55.3]} 5. cxd5 {[%clk 0:02:58.9]}
5... Nxd5 {[%clk 0:02:56.2]} 6. e4 {[%clk 0:02:52.4]} 6... Nxc3 {[%clk
0:02:56.3]} 7. bxc3 {[%clk 0:02:53.3]} 7... cxd4 {[%clk 0:02:57.1]} 8. cxd4
{[%clk 0:02:53.2]} 8... Bb4+ {[%clk 0:02:57.7]} 9. Bd2 {[%clk 0:02:50.3]} 9...
Bxd2+ {[%clk 0:02:58.6]} 10. Qxd2 {[%clk 0:02:50.6]} 10... O-O {[%clk
0:02:59.5]} 11. Bd3 {[%clk 0:02:46.1]} 11... Nc6 {[%clk 0:02:44.9]} 12. Qe3
{[%clk 0:02:35.6]} 12... Qa5+ {[%clk 0:02:21.5]} 13. Ke2 {[%clk 0:02:28.9]}
13... b6 {[%clk 0:02:18.3]} 14. Rhc1 {[%clk 0:02:24.1]} 14... Nb4 {[%clk
0:02:17.2]} 15. Bc4 {[%clk 0:02:13.9]} 15... Ba6 {[%clk 0:02:03.3]} 16. Bxa6
{[%clk 0:02:10.4]} 16... Qxa6+ {[%clk 0:02:00.8]} 17. Kd1 {[%clk 0:02:05.8]}
17... Qf1+ {[%clk 0:01:42.8]} 18. Ne1 {[%clk 0:01:42.9]} 18... Rfd8 {[%clk
0:01:42.3]} 19. a3 {[%clk 0:01:36.8]} 19... Na6 {[%clk 0:01:39]} 20. Rab1 {[%clk
0:01:28.9]} 20... Nc5 {[%clk 0:01:19.6]} 21. Rb2 {[%clk 0:00:46.3]} 21... Rd7
{[%clk 0:01:00.1]} 22. Rd2 {[%clk 0:00:35.4]} 22... Rad8 {[%clk 0:00:56.6]} 23.
Rcc2 {[%clk 0:00:35.8]} 23... h6 {[%clk 0:00:49.6]} 24. dxc5 {[%clk 0:00:32]}
24... Rxd2+ {[%clk 0:00:24.6]} 25. Rxd2 {[%clk 0:00:32.9]} 25... Rxd2+ {[%clk
0:00:25]} 26. Kxd2 {[%clk 0:00:29.5]} 26... bxc5 {[%clk 0:00:25.9]} 27. Qxc5
{[%clk 0:00:16.2]} 27... h5 {[%clk 0:00:15.5]} 28. Qxa7 {[%clk 0:00:15.1]} 28...
h4 {[%clk 0:00:15.2]} 29. Qd4 {[%clk 0:00:11.1]} 29... Qb5 {[%clk 0:00:07.6]}
30. a4 {[%clk 0:00:09.5]} 30... Qa5+ {[%clk 0:00:06.8]} 31. Ke3 {[%clk
0:00:07.5]} 31... Qg5+ {[%clk 0:00:07.1]} 32. f4 {[%clk 0:00:06.4]} 32... Qa5
{[%clk 0:00:06.7]} 33. Nd3 {[%clk 0:00:05.8]} 33... Qc7 {[%clk 0:00:02.7]} 34.
Qc5 {[%clk 0:00:04.6]} 34... Qb7 {[%clk 0:00:02.5]} 35. a5 {[%clk 0:00:04.5]}
35... Qb3 {[%clk 0:00:02.1]} 36. a6 {[%clk 0:00:03.9]} 36... Qb1 {[%clk
0:00:01.3]} 37. a7 {[%clk 0:00:03.7]} 37... Qg1+ {[%clk 0:00:01.7]} 38. Ke2
{[%clk 0:00:02.9]} 38... Qxg2+ {[%clk 0:00:01.7]} 39. Qf2 {[%clk 0:00:02.7]}
39... Qg4+ {[%clk 0:00:01.7]} 40. Kd2 {[%clk 0:00:03.2]} 40... Qe2+ {[%clk
0:00:01.2]} 41. Qxe2 {[%clk 0:00:02.9]} 41... Kh7 {[%clk 0:00:02.1]} 42. a8=Q
{[%clk 0:00:03.4]} 42... g5 {[%clk 0:00:03]} 43. Qc6 {[%clk 0:00:04.1]} 43...
Kh6 {[%clk 0:00:03.9]} 44. Qc7 {[%clk 0:00:05]} 44... f5 {[%clk 0:00:04.8]} 45.
Qf7 {[%clk 0:00:05.3]} 45... gxf4 {[%clk 0:00:05]} 46. exf5 {[%clk 0:00:06.2]}
46... Kg5 {[%clk 0:00:05.4]} 47. Qfxe6 {[%clk 0:00:06.3]} 47... f3 {[%clk
0:00:05.9]} 48. Qg6# {[%clk 0:00:07.2]} 1-0

[Event "Early-Titled-Tuesday-Blitz-May-14-2024"]
[Site "Chess.com"]
[Date "2024.05.14"]
[Round "7"]
[White "laiciffOneslraCsungaM"]
[Black "Kazmin_Semyon"]
[Result "1-0"]
[WhiteElo "2428"]
[BlackElo "2579"]
[TimeControl "180+1"]
[EndTime "9:20:14 PDT"]
[Termination "laiciffOneslraCsungaM won by resignation"]

1. Nf3 {[%clk 0:03:00.9]} 1... Nf6 {[%clk 0:02:56]} 2. g3 {[%clk 0:02:54.4]}
2... g6 {[%clk 0:02:52.3]} 3. Bg2 {[%clk 0:02:54.7]} 3... Bg7 {[%clk 0:02:52.2]}
4. b3 {[%clk 0:02:54.1]} 4... O-O {[%clk 0:02:51.5]} 5. Bb2 {[%clk 0:02:54.2]}
5... d6 {[%clk 0:02:39.6]} 6. d4 {[%clk 0:02:53.2]} 6... c5 {[%clk 0:02:33.3]}
7. O-O {[%clk 0:02:48.8]} 7... Nc6 {[%clk 0:02:29.4]} 8. c4 {[%clk 0:02:41.2]}
8... a6 {[%clk 0:02:27.9]} 9. Nc3 {[%clk 0:02:25.6]} 9... Rb8 {[%clk 0:02:27.3]}
10. e3 {[%clk 0:01:41.7]} 10... b5 {[%clk 0:02:19]} 11. cxb5 {[%clk 0:01:40.9]}
11... axb5 {[%clk 0:02:19.9]} 12. dxc5 {[%clk 0:01:40.5]} 12... dxc5 {[%clk
0:02:18.7]} 13. Qe2 {[%clk 0:01:38.1]} 13... Qa5 {[%clk 0:02:15.1]} 14. Rfd1
{[%clk 0:01:34.5]} 14... Ba6 {[%clk 0:02:06.1]} 15. Qe1 {[%clk 0:01:28.9]} 15...
c4 {[%clk 0:02:00.3]} 16. Nd4 {[%clk 0:01:24.3]} 16... Nxd4 {[%clk 0:01:59]} 17.
Rxd4 {[%clk 0:01:14.3]} 17... b4 {[%clk 0:01:59.1]} 18. Nd5 {[%clk 0:01:14.4]}
18... Nxd5 {[%clk 0:01:23.5]} 19. Rxd5 {[%clk 0:01:15.3]} 19... Qxd5 {[%clk
0:01:23.9]} 20. Bxg7 {[%clk 0:00:49]} 20... Qc5 {[%clk 0:01:16.3]} 21. Bxf8
{[%clk 0:00:48.2]} 21... Kxf8 {[%clk 0:01:13.7]} 22. bxc4 {[%clk 0:00:48.2]}
22... Bxc4 {[%clk 0:01:10.3]} 23. Rc1 {[%clk 0:00:48]} 23... Qb5 {[%clk
0:01:09.5]} 24. Qd2 {[%clk 0:00:46.5]} 24... Be6 {[%clk 0:01:05.1]} 25. Qd4
{[%clk 0:00:39.5]} 25... f6 {[%clk 0:01:03.6]} 26. Rc5 {[%clk 0:00:34.2]} 26...
Qa4 {[%clk 0:00:58.9]} 27. Bd5 {[%clk 0:00:33.1]} 27... Rd8 {[%clk 0:00:51.3]}
28. Kg2 {[%clk 0:00:15.8]} 28... Kg7 {[%clk 0:00:15.1]} 29. Qc4 {[%clk
0:00:15.4]} 29... Bxd5+ {[%clk 0:00:14]} 30. Rxd5 {[%clk 0:00:16.3]} 30... Qa8
{[%clk 0:00:13.4]} 31. e4 {[%clk 0:00:16.8]} 31... Rxd5 {[%clk 0:00:13.6]} 32.
exd5 {[%clk 0:00:17]} 32... Qb7 {[%clk 0:00:12.8]} 33. Qc6 {[%clk 0:00:17.2]}
33... Qb8 {[%clk 0:00:12.3]} 34. Qd7 {[%clk 0:00:16.9]} 34... Kf7 {[%clk
0:00:06]} 35. Qe6+ {[%clk 0:00:17.3]} 35... Kf8 {[%clk 0:00:05.9]} 36. Qc6
{[%clk 0:00:17.7]} 36... f5 {[%clk 0:00:05.8]} 37. Qe6 {[%clk 0:00:17.2]} 37...
Qc7 {[%clk 0:00:04.5]} 38. Qc6 {[%clk 0:00:16.3]} 38... Qxc6 {[%clk 0:00:03.5]}
39. dxc6 {[%clk 0:00:17.2]} 39... Ke8 {[%clk 0:00:04.3]} 40. Kf3 {[%clk
0:00:17.2]} 40... e5 {[%clk 0:00:03.9]} 41. Ke3 {[%clk 0:00:16.9]} 41... Kd8
{[%clk 0:00:04]} 42. Kd3 {[%clk 0:00:17.5]} 42... Kc7 {[%clk 0:00:04.3]} 43. Kc4
{[%clk 0:00:18.2]} 43... Kxc6 {[%clk 0:00:04.3]} 44. Kxb4 {[%clk 0:00:18.8]}
44... e4 {[%clk 0:00:02.5]} 45. Kc4 {[%clk 0:00:19.1]} 45... Kd6 {[%clk
0:00:01.6]} 46. Kd4 {[%clk 0:00:19.3]} 46... h6 {[%clk 0:00:01.7]} 47. h4 {[%clk
0:00:19.2]} 47... g5 {[%clk 0:00:02.1]} 48. h5 {[%clk 0:00:19.8]} 48... g4
{[%clk 0:00:01.7]} 49. Ke3 {[%clk 0:00:19.1]} 49... Ke5 {[%clk 0:00:01.6]} 50.
a4 {[%clk 0:00:19.5]} 50... Kf6 {[%clk 0:00:02.1]} 51. Kf4 {[%clk 0:00:18.8]}
51... Ke6 {[%clk 0:00:02.4]} 52. a5 {[%clk 0:00:19]} 52... Kf6 {[%clk
0:00:03.3]} 53. a6 {[%clk 0:00:19.3]} 1-0